Workbook

Sheet 人员明细
A1: 肥西县上派镇2022年公开招聘城市社区工作者合成成绩
A2: 序号 | B2: 岗位代码 | C2: 准考证号 | D2: 综合知识 | E2: 面试室 | F2: 抽签号 | G2: 面试成绩 | H2: 合成成绩 | I2: 备注
A3: 1 | B3: 城市社区工作者1-202201 | C3: 202206100603 | D3: 67.6 | E3: 面试室一 | F3: 3 | G3: 77.72 | H3: =D3*0.4+G3*0.6 -> 73.67
A4: 2 | B4: 城市社区工作者1-202201 | C4: 202206103510 | D4: 61.9 | E4: 面试室一 | F4: 4 | G4: 80.44 | H4: =D4*0.4+G4*0.6 -> 73.02
A5: 3 | B5: 城市社区工作者1-202201 | C5: 202206102715 | D5: 65.1 | E5: 面试室一 | F5: 11 | G5: 77.52 | H5: 72.55
A6: 4 | B6: 城市社区工作者1-202201 | C6: 202206102512 | D6: 64.1 | E6: 面试室一 | F6: 15 | G6: 76.84 | H6: 71.74
A7: 5 | B7: 城市社区工作者1-202201 | C7: 202206102819 | D7: 65.9 | E7: 面试室一 | F7: 2 | G7: 75.3 | H7: 71.54
A8: 6 | B8: 城市社区工作者1-202201 | C8: 202206100620 | D8: 64.1 | E8: 面试室一 | F8: 19 | G8: 76.4 | H8: 71.48
A9: 7 | B9: 城市社区工作者1-202201 | C9: 202206103810 | D9: 62.8 | E9: 面试室一 | F9: 18 | G9: 76.8 | H9: 71.20
A10: 8 | B10: 城市社区工作者1-202201 | C10: 202206100204 | D10: 63.4 | E10: 面试室一 | F10: 12 | G10: 75.22 | H10: 70.49
A11: 9 | B11: 城市社区工作者1-202201 | C11: 202206103806 | D11: 62.1 | E11: 面试室一 | F11: 6 | G11: 74.18 | H11: 69.35
A12: 10 | B12: 城市社区工作者1-202201 | C12: 202206101722 | D12: 58.8 | E12: 面试室一 | F12: 10 | G12: 76.38 | H12: 69.35
A13: 11 | B13: 城市社区工作者1-202201 | C13: 202206103212 | D13: 56.8 | E13: 面试室一 | F13: 17 | G13: 76.96 | H13: 68.90
A14: 12 | B14: 城市社区工作者1-202201 | C14: 202206103720 | D14: 58.9 | E14: 面试室一 | F14: 5 | G14: 75.52 | H14: 68.87
A15: 13 | B15: 城市社区工作者1-202201 | C15: 202206101922 | D15: 55.6 | E15: 面试室一 | F15: 13 | G15: 76.88 | H15: 68.37
A16: 14 | B16: 城市社区工作者1-202201 | C16: 202206102128 | D16: 58.3 | E16: 面试室一 | F16: 14 | G16: 75.02 | H16: 68.33
A17: 15 | B17: 城市社区工作者1-202201 | C17: 202206103721 | D17: 57.1 | E17: 面试室一 | F17: 16 | G17: 75.5 | H17: 68.14
A18: 16 | B18: 城市社区工作者1-202201 | C18: 202206104010 | D18: 58.6 | E18: 面试室一 | F18: 8 | G18: 73.86 | H18: 67.76
A19: 17 | B19: 城市社区工作者1-202201 | C19: 202206101229 | D19: 57.4 | E19: 面试室一 | F19: 20 | G19: 74.62 | H19: 67.73
A20: 18 | B20: 城市社区工作者1-202201 | C20: 202206100202 | D20: 58.6 | E20: 面试室一 | F20: 7 | G20: 72.7 | H20: 67.06
A21: 19 | B21: 城市社区工作者1-202201 | C21: 202206100825 | D21: 55.7 | E21: 面试室一 | F21: 9 | G21: 74.24 | H21: 66.82
A22: 20 | B22: 城市社区工作者1-202201 | C22: 202206102113 | D22: 55.6 | E22: 面试室一 | F22: 21 | G22: 73.66 | H22: 66.44
A23: 21 | B23: 城市社区工作者1-202201 | C23: 202206104708 | D23: 57.7 | E23: 面试室一 | F23: 1 | G23: 68.26 | H23: 64.04
A24: 22 | B24: 城市社区工作者1-202201 | C24: 202206101615 | D24: 61.3 | E24: 面试室一 | F24: / | G24: / | H24: / | I24: 缺考
A25: 23 | B25: 城市社区工作者1-202201 | C25: 202206102601 | D25: 57.4 | E25: 面试室一 | F25: / | G25: / | H25: / | I25: 缺考
A26: 24 | B26: 城市社区工作者1-202201 | C26: 202206102607 | D26: 57 | E26: 面试室一 | F26: / | G26: / | H26: / | I26: 缺考
A28: 1 | B28: 城市社区工作者2-202202 | C28: 202206101302 | D28: 71.2 | E28: 面试室二 | F28: 21 | G28: 79.4 | H28: =D28*0.4+G28*0.6 -> 76.12
A29: 2 | B29: 城市社区工作者2-202202 | C29: 202206100404 | D29: 67.5 | E29: 面试室二 | F29: 2 | G29: 78.52 | H29: 74.11
A30: 3 | B30: 城市社区工作者2-202202 | C30: 202206100827 | D30: 64.7 | E30: 面试室二 | F30: 8 | G30: 79.16 | H30: 73.38
A31: 4 | B31: 城市社区工作者2-202202 | C31: 202206101924 | D31: 59.4 | E31: 面试室二 | F31: 3 | G31: 79.36 | H31: =D31*0.4+G31*0.6 -> 71.38
A32: 5 | B32: 城市社区工作者2-202202 | C32: 202206102007 | D32: 61.5 | E32: 面试室二 | F32: 5 | G32: 77.2 | H32: 70.92
A33: 6 | B33: 城市社区工作者2-202202 | C33: 202206102719 | D33: 60.1 | E33: 面试室二 | F33: 16 | G33: 77.8 | H33: 70.72
A34: 7 | B34: 城市社区工作者2-202202 | C34: 202206104025 | D34: 56.5 | E34: 面试室二 | F34: 9 | G34: 79.84 | H34: 70.50
A35: 8 | B35: 城市社区工作者2-202202 | C35: 202206102625 | D35: 61.5 | E35: 面试室二 | F35: 15 | G35: 76.44 | H35: 70.46
A36: 9 | B36: 城市社区工作者2-202202 | C36: 202206101809 | D36: 58.1 | E36: 面试室二 | F36: 20 | G36: 78.38 | H36: 70.27
A37: 10 | B37: 城市社区工作者2-202202 | C37: 202206101915 | D37: 60.5 | E37: 面试室二 | F37: 24 | G37: 76.7 | H37: 70.22
A38: 11 | B38: 城市社区工作者2-202202 | C38: 202206104402 | D38: 60.7 | E38: 面试室二 | F38: 6 | G38: 74.98 | H38: 69.27
A39: 12 | B39: 城市社区工作者2-202202 | C39: 202206104811 | D39: 58.3 | E39: 面试室二 | F39: 22 | G39: 75.94 | H39: 68.88
A40: 13 | B40: 城市社区工作者2-202202 | C40: 202206102119 | D40: 57.5 | E40: 面试室二 | F40: 17 | G40: 76 | H40: 68.60
A41: 14 | B41: 城市社区工作者2-202202 | C41: 202206101420 | D41: 57.9 | E41: 面试室二 | F41: 14 | G41: 75.32 | H41: 68.35
A42: 15 | B42: 城市社区工作者2-202202 | C42: 202206100908 | D42: 57.1 | E42: 面试室二 | F42: 11 | G42: 75.76 | H42: 68.30
A43: 16 | B43: 城市社区工作者2-202202 | C43: 202206100910 | D43: 53.3 | E43: 面试室二 | F43: 13 | G43: 77.96 | H43: 68.10
A44: 17 | B44: 城市社区工作者2-202202 | C44: 202206100923 | D44: 53.6 | E44: 面试室二 | F44: 10 | G44: 76.56 | H44: 67.38
A45: 18 | B45: 城市社区工作者2-202202 | C45: 202206104512 | D45: 55.2 | E45: 面试室二 | F45: 12 | G45: 75.18 | H45: 67.19
A46: 19 | B46: 城市社区工作者2-202202 | C46: 202206102804 | D46: 53 | E46: 面试室二 | F46: 19 | G46: 76.42 | H46: 67.05
A47: 20 | B47: 城市社区工作者2-202202 | C47: 202206100425 | D47: 54.4 | E47: 面试室二 | F47: 23 | G47: 75.44 | H47: 67.02
A48: 21 | B48: 城市社区工作者2-202202 | C48: 202206103414 | D48: 58.6 | E48: 面试室二 | F48: 18 | G48: 72.56 | H48: 66.98
A49: 22 | B49: 城市社区工作者2-202202 | C49: 202206101520 | D49: 56.4 | E49: 面试室二 | F49: 4 | G49: 71.26 | H49: 65.32
A50: 23 | B50: 城市社区工作者2-202202 | C50: 202206104227 | D50: 54.4 | E50: 面试室二 | F50: 7 | G50: 72.1 | H50: 65.02
A51: 24 | B51: 城市社区工作者2-202202 | C51: 202206103316 | D51: 54.2 | E51: 面试室二 | F51: 1 | G51: 70.78 | H51: 64.15
A52: 25 | B52: 城市社区工作者2-202202 | C52: 202206101326 | D52: 55 | E52: 面试室二 | F52: / | G52: / | H52: / | I52: 缺考
A53: 26 | B53: 城市社区工作者2-202202 | C53: 202206102706 | D53: 54.8 | E53: 面试室二 | F53: / | G53: / | H53: / | I53: 缺考
A55: 1 | B55: 城市社区工作者3-202203 | C55: 202206104831 | D55: 69.6 | E55: 面试室三 | F55: 11 | G55: 75.4 | H55: =D55*0.4+G55*0.6 -> 73.08
A56: 2 | B56: 城市社区工作者3-202203 | C56: 202206104011 | D56: 70.8 | E56: 面试室三 | F56: 8 | G56: 74.5 | H56: =D56*0.4+G56*0.6 -> 73.02
A57: 3 | B57: 城市社区工作者3-202203 | C57: 202206103107 | D57: 65.1 | E57: 面试室三 | F57: 5 | G57: 76.52 | H57: 71.95
A58: 4 | B58: 城市社区工作者3-202203 | C58: 202206100828 | D58: 65.5 | E58: 面试室三 | F58: 2 | G58: 76.04 | H58: 71.82
A59: 5 | B59: 城市社区工作者3-202203 | C59: 202206100826 | D59: 64.5 | E59: 面试室三 | F59: 6 | G59: 75.6 | H59: 71.16
A60: 6 | B60: 城市社区工作者3-202203 | C60: 202206100203 | D60: 65 | E60: 面试室三 | F60: 9 | G60: 74.8 | H60: 70.88
A61: 7 | B61: 城市社区工作者3-202203 | C61: 202206102315 | D61: 66.7 | E61: 面试室三 | F61: 3 | G61: 72.82 | H61: 70.37
A62: 8 | B62: 城市社区工作者3-202203 | C62: 202206104728 | D62: 63.1 | E62: 面试室三 | F62: 10 | G62: 73.6 | H62: 69.40
A63: 9 | B63: 城市社区工作者3-202203 | C63: 202206103120 | D63: 60.5 | E63: 面试室三 | F63: 7 | G63: 75.3 | H63: 69.38
A64: 10 | B64: 城市社区工作者3-202203 | C64: 202206100629 | D64: 61.8 | E64: 面试室三 | F64: 1 | G64: 74.36 | H64: 69.34
A65: 11 | B65: 城市社区工作者3-202203 | C65: 202206100115 | D65: 62.9 | E65: 面试室三 | F65: 4 | G65: 73.28 | H65: 69.13
A66: 12 | B66: 城市社区工作者3-202203 | C66: 202206104625 | D66: 62.1 | E66: 面试室三 | F66: / | G66: / | H66: / | I66: 缺考
A68: 1 | B68: 城市社区工作者4-202204 | C68: 202206100608 | D68: 67.6 | E68: 面试室三 | F68: 8 | G68: 74.52 | H68: =D68*0.4+G68*0.6 -> 71.75
A69: 2 | B69: 城市社区工作者4-202204 | C69: 202206100619 | D69: 66.7 | E69: 面试室三 | F69: 11 | G69: 74.96 | H69: 71.66
A70: 3 | B70: 城市社区工作者4-202204 | C70: 202206101912 | D70: 63.6 | E70: 面试室三 | F70: 4 | G70: 76.18 | H70: 71.15
A71: 4 | B71: 城市社区工作者4-202204 | C71: 202206100321 | D71: 64.2 | E71: 面试室三 | F71: 2 | G71: 74.88 | H71: 70.61
A72: 5 | B72: 城市社区工作者4-202204 | C72: 202206104312 | D72: 62.5 | E72: 面试室三 | F72: 1 | G72: 75.68 | H72: 70.41
A73: 6 | B73: 城市社区工作者4-202204 | C73: 202206103905 | D73: 61 | E73: 面试室三 | F73: 6 | G73: 75.64 | H73: 69.78
A74: 7 | B74: 城市社区工作者4-202204 | C74: 202206101914 | D74: 59.7 | E74: 面试室三 | F74: 5 | G74: 75.3 | H74: 69.06
A75: 8 | B75: 城市社区工作者4-202204 | C75: 202206103018 | D75: 59.7 | E75: 面试室三 | F75: 7 | G75: 73.92 | H75: 68.23
A76: 9 | B76: 城市社区工作者4-202204 | C76: 202206104305 | D76: 61.3 | E76: 面试室三 | F76: 10 | G76: 72.7 | H76: 68.14
A77: 10 | B77: 城市社区工作者4-202204 | C77: 202206104219 | D77: 57.2 | E77: 面试室三 | F77: 9 | G77: 72.18 | H77: 66.19
A78: 11 | B78: 城市社区工作者4-202204 | C78: 202206104129 | D78: 56.4 | E78: 面试室三 | F78: 3 | G78: 71.76 | H78: 65.62
A80: 1 | B80: 城市社区工作者5-男-202205 | C80: 202206102802 | D80: 67.8 | E80: 面试室四 | F80: 22 | G80: 80.52 | H80: =D80*0.4+G80*0.6 -> 75.43
A81: 2 | B81: 城市社区工作者5-男-202205 | C81: 202206101211 | D81: 66.1 | E81: 面试室四 | F81: 4 | G81: 74.84 | H81: 71.34
A82: 3 | B82: 城市社区工作者5-男-202205 | C82: 202206102717 | D82: 64 | E82: 面试室四 | F82: 15 | G82: 76.14 | H82: 71.28
A83: 4 | B83: 城市社区工作者5-男-202205 | C83: 202206103113 | D83: 60.5 | E83: 面试室四 | F83: 6 | G83: 78.44 | H83: 71.26
A84: 5 | B84: 城市社区工作者5-男-202205 | C84: 202206104407 | D84: 61.5 | E84: 面试室四 | F84: 21 | G84: 77.08 | H84: 70.85
A85: 6 | B85: 城市社区工作者5-男-202205 | C85: 202206102630 | D85: 62.6 | E85: 面试室四 | F85: 1 | G85: 76 | H85: 70.64
A86: 7 | B86: 城市社区工作者5-男-202205 | C86: 202206101205 | D86: 59.6 | E86: 面试室四 | F86: 9 | G86: 77.02 | H86: 70.05
A87: 8 | B87: 城市社区工作者5-男-202205 | C87: 202206103627 | D87: 60.5 | E87: 面试室四 | F87: 8 | G87: 76.04 | H87: 69.82
A88: 9 | B88: 城市社区工作者5-男-202205 | C88: 202206102513 | D88: 59.1 | E88: 面试室四 | F88: 7 | G88: 75.54 | H88: 68.96
A89: 10 | B89: 城市社区工作者5-男-202205 | C89: 202206104615 | D89: 58.7 | E89: 面试室四 | F89: 3 | G89: 75.44 | H89: 68.74
A90: 11 | B90: 城市社区工作者5-男-202205 | C90: 202206103513 | D90: 59.4 | E90: 面试室四 | F90: 14 | G90: 74.32 | H90: 68.35
A91: 12 | B91: 城市社区工作者5-男-202205 | C91: 202206102321 | D91: 58.7 | E91: 面试室四 | F91: 11 | G91: 74.62 | H91: 68.25
A92: 13 | B92: 城市社区工作者5-男-202205 | C92: 202206101423 | D92: 60.9 | E92: 面试室四 | F92: 18 | G92: 73.1 | H92: 68.22
A93: 14 | B93: 城市社区工作者5-男-202205 | C93: 202206100612 | D93: 56.8 | E93: 面试室四 | F93: 20 | G93: 75.68 | H93: 68.13
A94: 15 | B94: 城市社区工作者5-男-202205 | C94: 202206100615 | D94: 56.9 | E94: 面试室四 | F94: 24 | G94: 75.48 | H94: 68.05
A95: 16 | B95: 城市社区工作者5-男-202205 | C95: 202206102801 | D95: 60.9 | E95: 面试室四 | F95: 5 | G95: 72.28 | H95: 67.73
A96: 17 | B96: 城市社区工作者5-男-202205 | C96: 202206104414 | D96: 56.8 | E96: 面试室四 | F96: 17 | G96: 74.9 | H96: 67.66
A97: 18 | B97: 城市社区工作者5-男-202205 | C97: 202206101021 | D97: 56.8 | E97: 面试室四 | F97: 13 | G97: 74.3 | H97: 67.30
A98: 19 | B98: 城市社区工作者5-男-202205 | C98: 202206102421 | D98: 60.6 | E98: 面试室四 | F98: 10 | G98: 71.54 | H98: 67.16
A99: 20 | B99: 城市社区工作者5-男-202205 | C99: 202206100606 | D99: 57 | E99: 面试室四 | F99: 19 | G99: 73.88 | H99: 67.13
A100: 21 | B100: 城市社区工作者5-男-202205 | C100: 202206101517 | D100: 57.9 | E100: 面试室四 | F100: 12 | G100: 73.18 | H100: 67.07
A101: 22 | B101: 城市社区工作者5-男-202205 | C101: 202206100802 | D101: 59 | E101: 面试室四 | F101: 25 | G101: 72.38 | H101: 67.03
A102: 23 | B102: 城市社区工作者5-男-202205 | C102: 202206104114 | D102: 64.4 | E102: 面试室四 | F102: 16 | G102: 68.66 | H102: 66.96
A103: 24 | B103: 城市社区工作者5-男-202205 | C103: 202206104325 | D103: 58.3 | E103: 面试室四 | F103: 2 | G103: 71.56 | H103: 66.26
A104: 25 | B104: 城市社区工作者5-男-202205 | C104: 202206102924 | D104: 59.9 | E104: 面试室四 | F104: 23 | G104: 68.78 | H104: 65.23
A105: 26 | B105: 城市社区工作者5-男-202205 | C105: 202206102009 | D105: 60.4 | E105: 面试室四 | F105: / | G105: / | H105: / | I105: 缺考
A107: 1 | B107: 城市社区工作者6-女-202206 | C107: 202206102310 | D107: 76.8 | E107: 面试室五 | F107: 6 | G107: 76.08 | H107: =D107*0.4+G107*0.6 -> 76.37
A108: 2 | B108: 城市社区工作者6-女-202206 | C108: 202206101327 | D108: 69.4 | E108: 面试室五 | F108: 7 | G108: 76.76 | H108: 73.82
A109: 3 | B109: 城市社区工作者6-女-202206 | C109: 202206102328 | D109: 66.5 | E109: 面试室五 | F109: 3 | G109: 77.94 | H109: 73.36
A110: 4 | B110: 城市社区工作者6-女-202206 | C110: 202206101427 | D110: 66 | E110: 面试室五 | F110: 4 | G110: 78.12 | H110: 73.27
A111: 5 | B111: 城市社区工作者6-女-202206 | C111: 202206102629 | D111: 62.1 | E111: 面试室五 | F111: 9 | G111: 78.98 | H111: 72.23
A112: 6 | B112: 城市社区工作者6-女-202206 | C112: 202206103311 | D112: 62.5 | E112: 面试室五 | F112: 22 | G112: 78.56 | H112: 72.14
A113: 7 | B113: 城市社区工作者6-女-202206 | C113: 202206100113 | D113: 66.4 | E113: 面试室五 | F113: 10 | G113: 75.88 | H113: 72.09
A114: 8 | B114: 城市社区工作者6-女-202206 | C114: 202206102416 | D114: 60.8 | E114: 面试室五 | F114: 21 | G114: 78.82 | H114: 71.61
A115: 9 | B115: 城市社区工作者6-女-202206 | C115: 202206102022 | D115: 64.3 | E115: 面试室五 | F115: 24 | G115: 76.22 | H115: 71.45
A116: 10 | B116: 城市社区工作者6-女-202206 | C116: 202206104304 | D116: 67.5 | E116: 面试室五 | F116: 18 | G116: 74.02 | H116: 71.41
A117: 11 | B117: 城市社区工作者6-女-202206 | C117: 202206103021 | D117: 62.8 | E117: 面试室五 | F117: 19 | G117: 77.1 | H117: 71.38
A118: 12 | B118: 城市社区工作者6-女-202206 | C118: 202206103912 | D118: 62.1 | E118: 面试室五 | F118: 28 | G118: 76.06 | H118: 70.48
A119: 13 | B119: 城市社区工作者6-女-202206 | C119: 202206102314 | D119: 60.6 | E119: 面试室五 | F119: 17 | G119: 76.76 | H119: 70.30
A120: 14 | B120: 城市社区工作者6-女-202206 | C120: 202206103326 | D120: 60.7 | E120: 面试室五 | F120: 14 | G120: 75.76 | H120: 69.74
A121: 15 | B121: 城市社区工作者6-女-202206 | C121: 202206103608 | D121: 61.7 | E121: 面试室五 | F121: 25 | G121: 74.88 | H121: 69.61
A122: 16 | B122: 城市社区工作者6-女-202206 | C122: 202206104207 | D122: 62.7 | E122: 面试室五 | F122: 15 | G122: 74.16 | H122: 69.58
A123: 17 | B123: 城市社区工作者6-女-202206 | C123: 202206104330 | D123: 60.6 | E123: 面试室五 | F123: 27 | G123: 75.12 | H123: 69.31
A124: 18 | B124: 城市社区工作者6-女-202206 | C124: 202206100226 | D124: 61.9 | E124: 面试室五 | F124: 8 | G124: 74 | H124: 69.16
A125: 19 | B125: 城市社区工作者6-女-202206 | C125: 202206104220 | D125: 65.9 | E125: 面试室五 | F125: 2 | G125: 71.26 | H125: 69.12
A126: 20 | B126: 城市社区工作者6-女-202206 | C126: 202206100611 | D126: 60.7 | E126: 面试室五 | F126: 11 | G126: 74.22 | H126: 68.81
A127: 21 | B127: 城市社区工作者6-女-202206 | C127: 202206103901 | D127: 61.1 | E127: 面试室五 | F127: 26 | G127: 73.7 | H127: 68.66
A128: 22 | B128: 城市社区工作者6-女-202206 | C128: 202206103327 | D128: 61 | E128: 面试室五 | F128: 5 | G128: 73.6 | H128: 68.56
A129: 23 | B129: 城市社区工作者6-女-202206 | C129: 202206100117 | D129: 62.4 | E129: 面试室五 | F129: 20 | G129: 72.54 | H129: 68.48
A130: 24 | B130: 城市社区工作者6-女-202206 | C130: 202206103325 | D130: 61.1 | E130: 面试室五 | F130: 12 | G130: 72.3 | H130: 67.82
A131: 25 | B131: 城市社区工作者6-女-202206 | C131: 202206101001 | D131: 62.4 | E131: 面试室五 | F131: 23 | G131: 70.6 | H131: 67.32
A132: 26 | B132: 城市社区工作者6-女-202206 | C132: 202206102510 | D132: 63.1 | E132: 面试室五 | F132: / | G132: / | H132: / | I132: 缺考
A133: 27 | B133: 城市社区工作者6-女-202206 | C133: 202206101628 | D133: 60.7 | E133: 面试室五 | F133: / | G133: / | H133: / | I133: 缺考
A134: 28 | B134: 城市社区工作者6-女-202206 | C134: 202206103407 | D134: 60.6 | E134: 面试室五 | F134: / | G134: / | H134: / | I134: 缺考
A136: 1 | B136: 城市社区工作者7-女-202207 | C136: 202206104327 | D136: 79.1 | E136: 面试室六 | F136: 7 | G136: 79 | H136: =D136*0.4+G136*0.6 -> 79.04
A137: 2 | B137: 城市社区工作者7-女-202207 | C137: 202206102915 | D137: 68.2 | E137: 面试室六 | F137: 9 | G137: 84.22 | H137: 77.81
A138: 3 | B138: 城市社区工作者7-女-202207 | C138: 202206100816 | D138: 65.2 | E138: 面试室六 | F138: 22 | G138: 78.84 | H138: 73.38
A139: 4 | B139: 城市社区工作者7-女-202207 | C139: 202206103827 | D139: 62.1 | E139: 面试室六 | F139: 6 | G139: 80.38 | H139: 73.07
A140: 5 | B140: 城市社区工作者7-女-202207 | C140: 202206102010 | D140: 65.1 | E140: 面试室六 | F140: 10 | G140: 78.12 | H140: 72.91
A141: 6 | B141: 城市社区工作者7-女-202207 | C141: 202206100609 | D141: 62.6 | E141: 面试室六 | F141: 23 | G141: 79.08 | H141: 72.49
A142: 7 | B142: 城市社区工作者7-女-202207 | C142: 202206100516 | D142: 64.7 | E142: 面试室六 | F142: 11 | G142: 76.96 | H142: 72.06
A143: 8 | B143: 城市社区工作者7-女-202207 | C143: 202206103115 | D143: 67.5 | E143: 面试室六 | F143: 17 | G143: 74.96 | H143: 71.98
A144: 9 | B144: 城市社区工作者7-女-202207 | C144: 202206101006 | D144: 66.7 | E144: 面试室六 | F144: 14 | G144: 75.44 | H144: 71.94
A145: 10 | B145: 城市社区工作者7-女-202207 | C145: 202206102415 | D145: 62.2 | E145: 面试室六 | F145: 1 | G145: 78.4 | H145: 71.92
A146: 11 | B146: 城市社区工作者7-女-202207 | C146: 202206104808 | D146: 67.4 | E146: 面试室六 | F146: 5 | G146: 74.44 | H146: 71.62
A147: 12 | B147: 城市社区工作者7-女-202207 | C147: 202206101025 | D147: 61 | E147: 面试室六 | F147: 3 | G147: 78.66 | H147: 71.60
A148: 13 | B148: 城市社区工作者7-女-202207 | C148: 202206103312 | D148: 62.9 | E148: 面试室六 | F148: 26 | G148: 76.88 | H148: 71.29
A149: 14 | B149: 城市社区工作者7-女-202207 | C149: 202206101223 | D149: 61.6 | E149: 面试室六 | F149: 15 | G149: 77.32 | H149: 71.03
A150: 15 | B150: 城市社区工作者7-女-202207 | C150: 202206101621 | D150: 62.3 | E150: 面试室六 | F150: 16 | G150: 76.82 | H150: 71.01
A151: 16 | B151: 城市社区工作者7-女-202207 | C151: 202206104515 | D151: 62.4 | E151: 面试室六 | F151: 2 | G151: 76.54 | H151: 70.88
A152: 17 | B152: 城市社区工作者7-女-202207 | C152: 202206100212 | D152: 61.7 | E152: 面试室六 | F152: 19 | G152: 76.64 | H152: 70.66
A153: 18 | B153: 城市社区工作者7-女-202207 | C153: 202206101916 | D153: 65.2 | E153: 面试室六 | F153: 4 | G153: 74.28 | H153: 70.65
A154: 19 | B154: 城市社区工作者7-女-202207 | C154: 202206103615 | D154: 62.2 | E154: 面试室六 | F154: 12 | G154: 75.62 | H154: 70.25
A155: 20 | B155: 城市社区工作者7-女-202207 | C155: 202206103318 | D155: 63.9 | E155: 面试室六 | F155: 18 | G155: 74.26 | H155: 70.12
A156: 21 | B156: 城市社区工作者7-女-202207 | C156: 202206101428 | D156: 62 | E156: 面试室六 | F156: 20 | G156: 74.04 | H156: 69.22
A157: 22 | B157: 城市社区工作者7-女-202207 | C157: 202206104528 | D157: 61.2 | E157: 面试室六 | F157: 13 | G157: 74.52 | H157: 69.19
A158: 23 | B158: 城市社区工作者7-女-202207 | C158: 202206103724 | D158: 62.4 | E158: 面试室六 | F158: 21 | G158: 71.96 | H158: 68.14
A159: 24 | B159: 城市社区工作者7-女-202207 | C159: 202206101311 | D159: 60.2 | E159: 面试室六 | F159: 24 | G159: 73 | H159: 67.88
A160: 25 | B160: 城市社区工作者7-女-202207 | C160: 202206100811 | D160: 60.1 | E160: 面试室六 | F160: 25 | G160: 71.94 | H160: 67.20
A161: 26 | B161: 城市社区工作者7-女-202207 | C161: 202206101605 | D161: 61.7 | E161: 面试室六 | F161: 8 | G161: 60.22 | H161: 60.81
A163: 1 | B163: 城市社区工作者8-男-202208 | C163: 202206101717 | D163: 80.5 | E163: 面试室七 | F163: 1 | G163: 78.14 | H163: =D163*0.4+G163*0.6 -> 79.08
A164: 2 | B164: 城市社区工作者8-男-202208 | C164: 202206104720 | D164: 65.4 | E164: 面试室七 | F164: 22 | G164: 78.42 | H164: 73.21
A165: 3 | B165: 城市社区工作者8-男-202208 | C165: 202206101306 | D165: 64.6 | E165: 面试室七 | F165: 23 | G165: 78.92 | H165: 73.19
A166: 4 | B166: 城市社区工作者8-男-202208 | C166: 202206102709 | D166: 66 | E166: 面试室七 | F166: 9 | G166: 75.24 | H166: 71.54
A167: 5 | B167: 城市社区工作者8-男-202208 | C167: 202206100125 | D167: 64.6 | E167: 面试室七 | F167: 14 | G167: 75.52 | H167: 71.15
A168: 6 | B168: 城市社区工作者8-男-202208 | C168: 202206100408 | D168: 62.3 | E168: 面试室七 | F168: 8 | G168: 76.92 | H168: 71.07
A169: 7 | B169: 城市社区工作者8-男-202208 | C169: 202206100415 | D169: 68.3 | E169: 面试室七 | F169: 2 | G169: 72 | H169: 70.52
A170: 8 | B170: 城市社区工作者8-男-202208 | C170: 202206103121 | D170: 58.4 | E170: 面试室七 | F170: 18 | G170: 78.56 | H170: 70.50
A171: 9 | B171: 城市社区工作者8-男-202208 | C171: 202206104126 | D171: 60.2 | E171: 面试室七 | F171: 17 | G171: 77.14 | H171: 70.36
A172: 10 | B172: 城市社区工作者8-男-202208 | C172: 202206101710 | D172: 65.3 | E172: 面试室七 | F172: 11 | G172: 73.02 | H172: 69.93
A173: 11 | B173: 城市社区工作者8-男-202208 | C173: 202206101115 | D173: 59.1 | E173: 面试室七 | F173: 5 | G173: 76.96 | H173: 69.82
A174: 12 | B174: 城市社区工作者8-男-202208 | C174: 202206104108 | D174: 64.8 | E174: 面试室七 | F174: 10 | G174: 73.1 | H174: 69.78
A175: 13 | B175: 城市社区工作者8-男-202208 | C175: 202206101927 | D175: 59.5 | E175: 面试室七 | F175: 19 | G175: 76.6 | H175: 69.76
A176: 14 | B176: 城市社区工作者8-男-202208 | C176: 202206103919 | D176: 59.3 | E176: 面试室七 | F176: 7 | G176: 76.14 | H176: 69.40
A177: 15 | B177: 城市社区工作者8-男-202208 | C177: 202206101023 | D177: 57.4 | E177: 面试室七 | F177: 3 | G177: 77.38 | H177: 69.39
A178: 16 | B178: 城市社区工作者8-男-202208 | C178: 202206101407 | D178: 62.2 | E178: 面试室七 | F178: 20 | G178: 74 | H178: 69.28
A179: 17 | B179: 城市社区工作者8-男-202208 | C179: 202206101801 | D179: 64.4 | E179: 面试室七 | F179: 24 | G179: 71.7 | H179: 68.78
A180: 18 | B180: 城市社区工作者8-男-202208 | C180: 202206103114 | D180: 61.6 | E180: 面试室七 | F180: 12 | G180: 73.2 | H180: 68.56
A181: 19 | B181: 城市社区工作者8-男-202208 | C181: 202206103122 | D181: 59.5 | E181: 面试室七 | F181: 16 | G181: 73.74 | H181: 68.04
A182: 20 | B182: 城市社区工作者8-男-202208 | C182: 202206102417 | D182: 57.2 | E182: 面试室七 | F182: 13 | G182: 74.74 | H182: 67.72
A183: 21 | B183: 城市社区工作者8-男-202208 | C183: 202206104520 | D183: 56.9 | E183: 面试室七 | F183: 21 | G183: 74.46 | H183: 67.44
A184: 22 | B184: 城市社区工作者8-男-202208 | C184: 202206101906 | D184: 59.2 | E184: 面试室七 | F184: 4 | G184: 72.78 | H184: 67.35
A185: 23 | B185: 城市社区工作者8-男-202208 | C185: 202206102030 | D185: 56.6 | E185: 面试室七 | F185: 15 | G185: 74.04 | H185: 67.06
A186: 24 | B186: 城市社区工作者8-男-202208 | C186: 202206100930 | D186: 59.9 | E186: 面试室七 | F186: 25 | G186: 68.12 | H186: 64.83
A187: 25 | B187: 城市社区工作者8-男-202208 | C187: 202206104121 | D187: 56.8 | E187: 面试室七 | F187: 6 | G187: 放弃 | H187: 22.72
A188: 26 | B188: 城市社区工作者8-男-202208 | C188: 202206103525 | D188: 61.7 | E188: 面试室七 | F188: / | G188: / | H188: /
A190: 1 | B190: 城市社区工作者9-退役军人-202209 | C190: 202206101514 | D190: 61.2 | E190: 面试室八 | F190: 21 | G190: 79.84 | H190: =D190*0.4+G190*0.6 -> 72.38
A191: 2 | B191: 城市社区工作者9-退役军人-202209 | C191: 202206102317 | D191: 59.4 | E191: 面试室八 | F191: 13 | G191: 80.58 | H191: =D191*0.4+G191*0.6 -> 72.11
A192: 3 | B192: 城市社区工作者9-退役军人-202209 | C192: 202206104112 | D192: 58.7 | E192: 面试室八 | F192: 18 | G192: 79.62 | H192: 71.25
A193: 4 | B193: 城市社区工作者9-退役军人-202209 | C193: 202206103906 | D193: 57.1 | E193: 面试室八 | F193: 22 | G193: 79.08 | H193: 70.29
A194: 5 | B194: 城市社区工作者9-退役军人-202209 | C194: 202206100118 | D194: 52.5 | E194: 面试室八 | F194: 6 | G194: 81.74 | H194: 70.04
A195: 6 | B195: 城市社区工作者9-退役军人-202209 | C195: 202206101730 | D195: 61.2 | E195: 面试室八 | F195: 4 | G195: 74.64 | H195: 69.26
A196: 7 | B196: 城市社区工作者9-退役军人-202209 | C196: 202206104229 | D196: 57 | E196: 面试室八 | F196: 5 | G196: 75.48 | H196: 68.09
A197: 8 | B197: 城市社区工作者9-退役军人-202209 | C197: 202206102319 | D197: 52.1 | E197: 面试室八 | F197: 15 | G197: 77.78 | H197: 67.51
A198: 9 | B198: 城市社区工作者9-退役军人-202209 | C198: 202206103008 | D198: 55.9 | E198: 面试室八 | F198: 9 | G198: 75.14 | H198: 67.44
A199: 10 | B199: 城市社区工作者9-退役军人-202209 | C199: 202206103130 | D199: 55.1 | E199: 面试室八 | F199: 10 | G199: 75.58 | H199: 67.39
A200: 11 | B200: 城市社区工作者9-退役军人-202209 | C200: 202206100610 | D200: 57.7 | E200: 面试室八 | F200: 2 | G200: 73.52 | H200: 67.19
A201: 12 | B201: 城市社区工作者9-退役军人-202209 | C201: 202206102620 | D201: 51 | E201: 面试室八 | F201: 3 | G201: 76.02 | H201: 66.01
A202: 13 | B202: 城市社区工作者9-退役军人-202209 | C202: 202206101224 | D202: 49.8 | E202: 面试室八 | F202: 11 | G202: 76.44 | H202: 65.78
A203: 14 | B203: 城市社区工作者9-退役军人-202209 | C203: 202206103722 | D203: 51.7 | E203: 面试室八 | F203: 16 | G203: 74.48 | H203: 65.37
A204: 15 | B204: 城市社区工作者9-退役军人-202209 | C204: 202206102123 | D204: 51.5 | E204: 面试室八 | F204: 14 | G204: 73.98 | H204: 64.99
A205: 16 | B205: 城市社区工作者9-退役军人-202209 | C205: 202206103814 | D205: 54.4 | E205: 面试室八 | F205: 7 | G205: 69.68 | H205: 63.57
A206: 17 | B206: 城市社区工作者9-退役军人-202209 | C206: 202206101018 | D206: 48.8 | E206: 面试室八 | F206: 19 | G206: 73.08 | H206: 63.37
A207: 18 | B207: 城市社区工作者9-退役军人-202209 | C207: 202206101911 | D207: 51.7 | E207: 面试室八 | F207: 17 | G207: 71.12 | H207: 63.35
A208: 19 | B208: 城市社区工作者9-退役军人-202209 | C208: 202206102206 | D208: 51.5 | E208: 面试室八 | F208: 1 | G208: 70.22 | H208: =D208*0.4+G208*0.6 -> 62.73
... 5 more rows
